[Event "4NCL Div 1 2024-25"]
[Site "England"]
[Date "2024.11.24"]
[Round "2.38"]
[White "Ledger, Dave J"]
[Black "Banerjee, Supratit"]
[Result "1-0"]
[Annotator "RC"]
[ECO "B12"]
[WhiteElo "2191"]
[BlackElo "2141"]
[PlyCount "159"]
[EventDate "2024.11.23"]
[EventType "team-tourn"]
[EventCountry "ENG"]
[SourceTitle "playchess.com"]
[Source "ChessBase"]
[SourceQuality "1"]
[TimeControl "40/6000+30:3000+30"]

1. e4 {[%emt 0:10:05]} c6 {[%emt 0:10:26]} 2. d4 {[%emt 0:00:25]} d5 {[%emt 0:00:07]} 3. e5 {[%emt 0:00:05]} Bf5 {[%emt 0:00:09]} 4. h4 {[%emt 0:01:14]} h5 {[%emt 0:00:12]} 5. Bd3 {[%emt 0:00:27]} Bxd3 {[%emt 0:00:22]} 6. Qxd3 {[%emt 0:00:05]} e6 {[%emt 0:00:12]} 7. Bg5 {[%emt 0:01:43]} Qb6 {[%emt 0:00:27]} 8. Nd2 {[%emt 0:01:27]} c5 {[%emt 0:02:41]} 9. c3 {[%emt 0:05:58]} Nc6 {[%emt 0:00:27]} 10. Ne2 {[%emt 0:03:20]} cxd4 {[%emt 0:07:59]} 11. cxd4 {[%emt 0:00:13]} Bb4 {[%emt 0:02:25]} 12. O-O {[%emt 0:02:49]} Nge7 {[%emt 0:00:40]} 13. Nf3 {[%emt 0:06:09]} Ng6 {[%emt 0:10:51]} 14. Rfd1 {[%emt 0:09:17]} Be7 {[%emt 0:01:23]} 15. Bxe7 {[%emt 0:02:48]} Ncxe7 {[%emt 0:00:39]} 16. Ng3 {[%emt 0:04:17]} Nc6 {[%emt 0:13:53]} 17. Nf1 {[%emt 0:06:00]} Qd8 {[%emt 0:20:16]} 18. g3 {[%emt 0:01:07]} Qb6 {[%emt 0:00:46]} 19. Rac1 {[%emt 0:05:57]} a5 {[%emt 0:18:43]} 20. Rc3 {[%emt 0:06:51]} a4 {[%emt 0:00:59]} 21. Ne3 {[%emt 0:07:24]} Nge7 {[%emt 0:06:16]} 22. b3 {[%emt 0:07:12]} a3 {[%emt 0:01:11]} 23. Nc2 {[%emt 0:01:18]} Nf5 {[%emt 0:01:31]} 24. Rb1 {[%emt 0:02:25]} O-O {[%emt 0:01:19]} 25. b4 {[%emt 0:01:03]} Ra4 {[%emt 0:01:02]} 26. Rxa3 {[%emt 0:01:06]} Rxa3 {[%emt 0:00:23]} 27. Qxa3 {[%emt 0:00:05]} f6 {[%emt 0:02:20]} 28. exf6 {[%emt 0:00:37]} Rxf6 {[%emt 0:00:46]} 29. Qd3 {[%emt 0:01:42]} Qc7 {[%emt 0:01:51]} 30. Ng5 {[%emt 0:03:15]} g6 {[%emt 0:00:58]} 31. Re1 {[%emt 0:02:49]} Qd6 {[%emt 0:01:28]} 32. a3 {[%emt 0:02:30]} Ng7 {[%emt 0:01:49]} 33. b5 {[%emt 0:02:43]} Na5 {[%emt 0:01:03]} 34. Ne3 {[%emt 0:00:49]} Qf8 {[%emt 0:00:57]} 35. Rc1 {[%emt 0:01:20]} Qd8 {[%emt 0:00:40]} 36. Qc3 {[%emt 0:01:50]} Rf8 {[%emt 0:00:23]} 37. Qc7 {[%emt 0:01:09]} Qf6 {[%emt 0:00:21]} 38. Rc2 {[%emt 0:02:20]} Nb3 {[%emt 0:00:29]} 39. Qxb7 {[%emt 0:02:03]} Nxd4 {[%emt 0:00:30]} 40. Ra2 {[%emt 0:00:49]} Ndf5 {[%emt 0:00:36]} 41. Nxf5 {[%emt 0:53:20]} Qxf5 {[%emt 0:50:08]} 42. Re2 {[%emt 0:00:43]} Qg4 {[%emt 0:00:00]} 43. Rxe6 {[%emt 0:00:00]} Qd1+ {[%emt 0:00:00]} 44. Kg2 {[%emt 0:00:00]} Qc2 {[%emt 0:00:00]} 45. Qa7 {[%emt 0:00:00]} d4 {[%emt 0:00:00]} 46. Qxd4 {[%emt 0:00:00]} Nxe6 {[%emt 0:00:00]} 47. Nxe6 {[%emt 0:00:00]} Rxf2+ {[%emt 0:00:00]} 48. Qxf2 {[%emt 0:00:00]} Qe4+ {[%emt 0:00:00]} 49. Kh2 {[%emt 0:00:00]} Qxe6 {[%emt 0:00:00]} 50. Qb2 {[%emt 0:00:00]} Qb6 {[%emt 0:00:00]} 51. a4 {[%emt 0:00:00]} g5 {[%emt 0:00:00]} 52. hxg5 {[%emt 0:00:00]} h4 {[%emt 0:00:00]} 53. Qb3+ {[%emt 0:00:00]} Kg7 {[%emt 0:00:00]} 54. Qc3+ {[%emt 0:00:00]} Kg8 {[%emt 0:00:00]} 55. Qc8+ {[%emt 0:00:00]} Kg7 {[%emt 0:00:00]} 56. Qd7+ {[%emt 0:00:00]} Kg8 {[%emt 0:00:00]} 57. Qd5+ {[%emt 0:00:00]} Kg7 {[%emt 0:00:00]} 58. Qf3 {[%emt 0:00:00]} hxg3+ {[%emt 0:00:00]} 59. Qxg3 {[%emt 0:00:00]} Qd4 {[%emt 0:00:00]} 60. Kh3 {[%emt 0:00:00]} Qxa4 {[%emt 0:00:00]} 61. Qe5+ {[%emt 0:00:00]} Kg8 {[%emt 0:00:00]} 62. g6 {[%emt 0:01:02]} Qd1 {[%emt 0:00:00]} 63. Kh4 {[%emt 0:02:42]} Qd8+ {[%emt 0:00:00]} 64. Kh5 {[%emt 0:00:59]} Qd1+ {[%emt 0:00:00]} 65. Kg5 {[%emt 0:00:26]} Qd8+ {[%emt 0:00:00]} 66. Kf5 {[%emt 0:00:26]} Qf8+ {[%emt 0:00:01]} 67. Kg4 {[%emt 0:01:27]} Qc8+ {[%emt 0:00:16]} 68. Qf5 {[%emt 0:00:10]} Qc4+ {[%emt 0:00:08]} 69. Kg5 {[%emt 0:01:01]} Qc1+ {[%emt 0:00:16]} 70. Kf6 {[%emt 0:00:06]} Qc3+ {[%emt 0:00:36]} 71. Qe5 {[%emt 0:00:58]} Qf3+ {[%emt 0:00:33]} 72. Ke6 {[%emt 0:01:14]} Qh3+ {[%emt 0:02:53]} 73. Kd6 {[%emt 0:01:10]} Qa3+ {[%emt 0:00:14]} 74. Qc5 {[%emt 0:00:17]} Qg3+ {[%emt 0:00:12]} 75. Kd7 {[%emt 0:01:15]} Qg4+ {[%emt 0:00:31]} 76. Kc7 {[%emt 0:00:23]} Qg3+ {[%emt 0:00:17]} 77. Qd6 {[%emt 0:00:34]} Qc3+ {[%emt 0:00:27]} 78. Kb8 {[%emt 0:00:29]} Qe3 {[%emt 0:03:20]} 79. Qc7 {[%emt 0:00:30]} Qe8+ {[%emt 0:01:01]} 80. Qc8 {[%emt 0:00:06]} 1-0

[Event "4NCL Div 1 2024-25"]
[Site "England"]
[Date "2024.11.24"]
[Round "2.39"]
[White "Patel, Zain"]
[Black "Nelson, Jonathan P"]
[Result "1/2-1/2"]
[Annotator "NA RC"]
[ECO "E95"]
[WhiteElo "2083"]
[BlackElo "2098"]
[PlyCount "95"]
[EventDate "2024.11.23"]
[EventType "team-tourn"]
[EventCountry "ENG"]
[SourceTitle "playchess.com"]
[Source "ChessBase"]
[SourceQuality "1"]
[TimeControl "40/6000+30:3000+30"]

1. Nf3 {[%emt 0:14:07]} Nf6 {[%emt 0:10:20]} 2. d4 {[%emt 0:02:56]} d6 {[%emt 0:00:22]} 3. c4 {[%emt 0:03:15]} g6 {[%emt 0:00:45]} 4. Nc3 {[%emt 0:01:45]} Bg7 {[%emt 0:00:09]} 5. e4 {[%emt 0:00:14]} O-O {[%emt 0:00:08]} 6. Be2 {[%emt 0:01:13]} Nbd7 {[%emt 0:00:19]} 7. O-O {[%emt 0:02:09]} e5 {[%emt 0:00:31]} 8. Re1 {[%emt 0:01:39]} Re8 {[%emt 0:02:18]} 9. Bf1 {[%emt 0:01:26]} a6 {[%emt 0:02:08]} 10. Rb1 {[%emt 0:04:38]} c6 {[%emt 0:07:41]} 11. d5 {[%emt 0:04:55]} c5 {[%emt 0:10:46]} 12. a3 {[%emt 0:02:28]} h6 {[%emt 0:17:13]} 13. b4 {[%emt 0:09:31]} Nh7 {[%emt 0:02:34]} 14. bxc5 {[%emt 0:02:27]} Nxc5 {[%emt 0:00:10]} 15. Nd2 {[%emt 0:01:53]} f5 {[%emt 0:09:20]} 16. f3 {[%emt 0:09:12]} Nf6 {[%emt 0:12:29]} 17. Nb3 {[%emt 0:05:39]} Nxb3 {[%emt 0:05:54]} 18. Qxb3 {[%emt 0:03:54]} Nd7 {[%emt 0:07:48]} 19. Be3 {[%emt 0:01:46]} f4 {[%emt 0:00:42]} 20. Bf2 {[%emt 0:01:30]} Bf6 {[%emt 0:00:07]} 21. Qb4 {[%emt 0:04:55]} a5 {[%emt 0:07:31]} 22. Qb2 {[%emt 0:06:06]} Rf8 {[%emt 0:06:04]} 23. Nb5 {[%emt 0:02:16]} Ra6 {[%emt 0:02:02]} 24. Na7 {[%emt 0:02:02]} b6 {[%emt 0:04:06]} 25. Nxc8 {[%emt 0:00:37]} Qxc8 {[%emt 0:00:03]} 26. c5 {[%emt 0:00:12]} dxc5 {[%emt 0:00:35]} 27. Bxa6 {[%emt 0:00:05]} Qxa6 {[%emt 0:00:01]} 28. Qb5 {[%emt 0:01:26]} Qxb5 {[%emt 0:00:15]} 29. Rxb5 {[%emt 0:00:05]} Kf7 {[%emt 0:00:21]} 30. Reb1 {[%emt 0:02:42]} Bd8 {[%emt 0:00:12]} 31. Kf1 {[%emt 0:01:03]} Ke7 {[%emt 0:00:15]} 32. Ke2 {[%emt 0:01:09]} Kd6 {[%emt 0:00:05]} 33. g3 {[%emt 0:03:01]} g5 {[%emt 0:00:40]} 34. gxf4 {[%emt 0:00:03]} exf4 {[%emt 0:00:14]} 35. Rc1 {[%emt 0:00:52]} Re8 {[%emt 0:00:44]} 36. Be1 {[%emt 0:03:44]} g4 {[%emt 0:01:37]} 37. Bc3 {[%emt 0:00:40]} Ne5 {[%emt 0:00:50]} 38. Bxe5+ {[%emt 0:00:30]} Kxe5 {[%emt 0:00:06]} 39. Rd1 {[%emt 0:01:14]} Rg8 {[%emt 0:00:30]} 40. d6 {[%emt 0:00:33]} g3 {[%emt 0:00:18]} 41. hxg3 {[%emt 0:51:59]} Rxg3 {[%emt 0:28:10]} 42. Rd5+ {[%emt 0:00:00]} Ke6 {[%emt 0:00:07]} 43. Rh5 {[%emt 0:00:00]} Kxd6 {[%emt 0:01:55]} 44. Rxh6+ {[%emt 0:00:00]} Ke5 {[%emt 0:03:33]} 45. Rh5+ {[%emt 0:00:00]} Kd4 {[%emt 0:01:06]} 46. Rf5 {[%emt 0:00:00]} Rg2+ {[%emt 0:01:43]} 47. Kf1 {[%emt 0:00:00]} Ra2 {[%emt 0:02:24]} 48. Rb1 {[%emt 0:00:00]} 1/2-1/2

[Event "4NCL Div 1 2024-25"]
[Site "England"]
[Date "2024.11.24"]
[Round "2.40"]
[White "Varney, Zoe"]
[Black "Lalic, Peter D"]
[Result "1/2-1/2"]
[Annotator "RC"]
[ECO "C47"]
[WhiteElo "1996"]
[BlackElo "2131"]
[PlyCount "28"]
[EventDate "2024.11.23"]
[EventType "team-tourn"]
[EventCountry "ENG"]
[SourceTitle "playchess.com"]
[Source "ChessBase"]
[SourceQuality "1"]
[TimeControl "40/6000+30:3000+30"]

1. e4 {[%emt 0:10:03]} e5 {[%emt 0:10:03]} 2. Nf3 {[%emt 0:00:08]} Nc6 {[%emt 0:00:04]} 3. Nc3 {[%emt 0:00:57]} d6 {[%emt 0:06:54]} 4. d4 {[%emt 0:01:09]} Nf6 {[%emt 0:04:13]} 5. dxe5 {[%emt 0:07:02]} dxe5 {[%emt 0:00:55]} 6. Qxd8+ {[%emt 0:01:25]} Kxd8 {[%emt 0:00:02]} 7. Ng5 {[%emt 0:09:05]} Ke8 {[%emt 0:05:24]} 8. Bc4 {[%emt 0:10:16]} Nd8 {[%emt 0:00:03]} 9. Nb5 {[%emt 0:11:51]} Bd6 {[%emt 0:00:38]} 10. f4 {[%emt 0:03:35]} Nd7 {[%emt 0:39:08]} 11. Nxd6+ {[%emt 0:20:36]} cxd6 {[%emt 0:00:02]} 12. O-O {[%emt 0:01:12]} f6 {[%emt 0:01:28]} 13. Nf3 {[%emt 0:05:42]} Nc5 {[%emt 0:05:36]} 14. b4 {[%emt 0:09:49]} Nce6 {[%emt 0:18:31]} 1/2-1/2

[Event "4NCL Div 1 2024-25"]
[Site "England"]
[Date "2024.11.24"]
[Round "2.41"]
[White "Rendle, Thomas E"]
[Black "Kovchan, Alexander"]
[Result "1/2-1/2"]
[Annotator "TA"]
[ECO "D78"]
[WhiteElo "2383"]
[BlackElo "2453"]
[PlyCount "21"]
[EventDate "2024.11.23"]
[EventType "team-tourn"]
[EventCountry "ENG"]
[SourceTitle "playchess.com"]
[Source "ChessBase"]
[SourceQuality "1"]
[TimeControl "40/6000+30:3000+30"]

{[%evp 14,21,5,0,-1,0,5,0,33,-16]} 1. d4 {[%emt 0:10:04]} Nf6 {[%emt 0:10:11]} 2. c4 {[%emt 0:00:07]} g6 {[%emt 0:00:06]} 3. g3 {[%emt 0:00:06]} c6 {[%emt 0:00:32]} 4. Bg2 {[%emt 0:00:07]} d5 {[%emt 0:00:05]} 5. Nf3 {[%emt 0:00:21]} Bg7 {[%emt 0:00:22]} 6. O-O {[%emt 0:00:31]} O-O {[%emt 0:00:23]} 7. Ne5 {[%emt 0:04:08]} dxc4 {[%emt 0:00:27]} 8. Nxc4 {[%emt 0:00:21]} Be6 {[%emt 0:00:14] Against e4} 9. Ne5 {[%emt 0:00:28]} Qc8 {[%emt 0:00:39]} 10. e4 {[%emt 0:01:21]} Bh3 {[%emt 0:04:30]} 11. Qe2 {[%emt 0:07:14] A rather calm draw.   Weighted Error Value: White=0.02 (flawless) /Black=0.13 (very precise) .  Mistake:       	White=1     	---        Inaccurate:     	---       	Black=1} (11. Re1 $14) 1/2-1/2

[Event "4NCL Div 1 2024-25"]
[Site "England"]
[Date "2024.11.24"]
[Round "2.42"]
[White "Macak, Stefan"]
[Black "Lentzos, Ioanis"]
[Result "1/2-1/2"]
[Annotator "RC"]
[ECO "B12"]
[WhiteElo "2310"]
[BlackElo "2126"]
[PlyCount "238"]
[EventDate "2024.11.23"]
[EventType "team-tourn"]
[EventCountry "ENG"]
[SourceTitle "playchess.com"]
[Source "ChessBase"]
[SourceQuality "1"]
[TimeControl "40/6000+30:3000+30"]

1. e4 {[%emt 0:15:01]} c6 {[%emt 0:10:02]} 2. d4 {[%emt 0:00:19]} d5 {[%emt 0:00:04]} 3. e5 {[%emt 0:00:09]} Bf5 {[%emt 0:00:08]} 4. h4 {[%emt 0:00:18]} h5 {[%emt 0:00:08]} 5. c4 {[%emt 0:00:35]} e6 {[%emt 0:00:10]} 6. Nc3 {[%emt 0:00:12]} dxc4 {[%emt 0:00:11]} 7. Bxc4 {[%emt 0:00:14]} Nd7 {[%emt 0:00:06]} 8. Nf3 {[%emt 0:00:59]} Be7 {[%emt 0:04:35]} 9. g3 {[%emt 0:04:32]} Nh6 {[%emt 0:06:57]} 10. Bxh6 {[%emt 0:00:54]} Rxh6 {[%emt 0:00:12]} 11. O-O {[%emt 0:05:51]} g5 {[%emt 0:05:24]} 12. Qd2 {[%emt 0:08:29]} Rg6 {[%emt 0:01:01]} 13. hxg5 {[%emt 0:02:42]} Bxg5 {[%emt 0:00:12]} 14. Nxg5 {[%emt 0:00:25]} Qxg5 {[%emt 0:00:21]} 15. Qxg5 {[%emt 0:05:22]} Rxg5 {[%emt 0:00:04]} 16. Kg2 {[%emt 0:06:28]} Rd8 {[%emt 0:27:50]} 17. Rad1 {[%emt 0:11:29]} h4 {[%emt 0:10:36]} 18. Be2 {[%emt 0:10:21]} Ke7 {[%emt 0:09:31]} 19. Bf3 {[%emt 0:04:10]} hxg3 {[%emt 0:00:09]} 20. fxg3 {[%emt 0:00:12]} Rdg8 {[%emt 0:00:19]} 21. Ne2 {[%emt 0:01:07]} f6 {[%emt 0:07:25]} 22. exf6+ {[%emt 0:05:54]} Nxf6 {[%emt 0:00:06]} 23. Rg1 {[%emt 0:01:58]} Ng4 {[%emt 0:02:18]} 24. Rc1 {[%emt 0:03:44]} Ne3+ {[%emt 0:10:18]} 25. Kf2 {[%emt 0:00:26]} Nd5 {[%emt 0:01:07]} 26. Rcd1 {[%emt 0:07:44]} Rf8 {[%emt 0:05:51]} 27. Bxd5 {[%emt 0:04:24]} Bg4+ {[%emt 0:01:25]} 28. Ke3 {[%emt 0:02:11]} exd5 {[%emt 0:01:28]} 29. Rdf1 {[%emt 0:03:59]} Rxf1 {[%emt 0:00:08]} 30. Rxf1 {[%emt 0:00:03]} Bxe2 {[%emt 0:00:10]} 31. Kxe2 {[%emt 0:00:12]} Rxg3 {[%emt 0:00:03]} 32. Kd2 {[%emt 0:00:40]} a5 {[%emt 0:00:56]} 33. Rh1 {[%emt 0:00:27]} b5 {[%emt 0:02:34]} 34. a3 {[%emt 0:02:04]} Kd6 {[%emt 0:02:52]} 35. Rh7 {[%emt 0:00:59]} Rg2+ {[%emt 0:01:56]} 36. Kc3 {[%emt 0:00:22]} Rg3+ {[%emt 0:00:23]} 37. Kc2 {[%emt 0:00:40]} Rg2+ {[%emt 0:00:08]} 38. Kc3 {[%emt 0:00:01]} Rg3+ {[%emt 0:00:31]} 39. Kc2 {[%emt 0:00:02]} Re3 {[%emt 0:00:07]} 40. Ra7 {[%emt 0:01:59]} a4 {[%emt 0:00:38]} 41. Kd2 {[%emt 0:52:39]} Rb3 {[%emt 0:51:50]} 42. Kc2 {[%emt 0:00:41]} Rh3 {[%emt 0:00:00]} 43. Kd2 {[%emt 0:00:00]} Rh6 {[%emt 0:00:00]} 44. Kd3 {[%emt 0:00:00]} Ke6 {[%emt 0:00:00]} 45. Rc7 {[%emt 0:00:00]} Rh3+ {[%emt 0:00:00]} 46. Kc2 {[%emt 0:00:00]} Kd6 {[%emt 0:00:00]} 47. Ra7 {[%emt 0:00:00]} Ke6 {[%emt 0:00:00]} 48. Rc7 {[%emt 0:00:00]} Kf5 {[%emt 0:00:00]} 49. Re7 {[%emt 0:00:00]} Kf4 {[%emt 0:00:00]} 50. Re6 {[%emt 0:00:00]} Re3 {[%emt 0:00:00]} 51. Rh6 {[%emt 0:00:00]} Ke4 {[%emt 0:00:00]} 52. Rh4+ {[%emt 0:00:00]} Kf5 {[%emt 0:00:00]} 53. Rh5+ {[%emt 0:00:00]} Kf4 {[%emt 0:00:00]} 54. Rh4+ {[%emt 0:00:00]} Kg5 {[%emt 0:00:00]} 55. Rh7 {[%emt 0:00:00]} Rf3 {[%emt 0:00:00]} 56. Rc7 {[%emt 0:00:00]} Kf4 {[%emt 0:00:27]} 57. Re7 {[%emt 0:00:00]} Re3 {[%emt 0:00:34]} 58. Rh7 {[%emt 0:00:00]} Re6 {[%emt 0:00:29]} 59. Kd3 {[%emt 0:00:00]} Rg6 {[%emt 0:00:30]} 60. Rf7+ {[%emt 0:00:00]} Kg5 {[%emt 0:00:25]} 61. Kc3 {[%emt 0:00:00]} Rf6 {[%emt 0:00:33]} 62. Rh7 {[%emt 0:00:00]} Kf5 {[%emt 0:02:03]} 63. Re7 {[%emt 0:00:00]} Re6 {[%emt 0:01:33]} 64. Rh7 {[%emt 0:00:00]} Re3+ {[%emt 0:01:01]} 65. Kc2 {[%emt 0:00:00]} Rg3 {[%emt 0:00:36]} 66. Re7 {[%emt 0:00:09]} Kf4 {[%emt 0:00:54]} 67. Re6 {[%emt 0:01:41]} Re3 {[%emt 0:00:05]} 68. Rh6 {[%emt 0:01:01]} Ke4 {[%emt 0:00:58]} 69. Rh4+ {[%emt 0:00:25]} Kf5 {[%emt 0:00:08]} 70. Rh7 {[%emt 0:03:16]} Ke6 {[%emt 0:00:22]} 71. Rc7 {[%emt 0:01:57]} Kd6 {[%emt 0:00:07]} 72. Ra7 {[%emt 0:00:17]} Re7 {[%emt 0:01:11]} 73. Ra8 {[%emt 0:00:45]} Rc7 {[%emt 0:00:11]} 74. Rd8+ {[%emt 0:01:19]} Rd7 {[%emt 0:00:13]} 75. Rc8 {[%emt 0:01:30]} Rg7 {[%emt 0:00:38]} 76. Kc3 {[%emt 0:01:04]} Rg3+ {[%emt 0:00:02]} 77. Kc2 {[%emt 0:00:07]} Kd7 {[%emt 0:00:03]} 78. Rb8 {[%emt 0:01:03]} Kc7 {[%emt 0:00:04]} 79. Ra8 {[%emt 0:00:44]} Kb7 {[%emt 0:00:22]} 80. Rd8 {[%emt 0:01:42]} Kc7 {[%emt 0:01:45]} 81. Ra8 {[%emt 0:01:30]} Kb7 {[%emt 0:00:00]} 82. Rd8 {[%emt 0:00:00]} Rb3 {[%emt 0:00:00]} 83. Rg8 {[%emt 0:01:32]} b4 {[%emt 0:00:00]} 84. axb4 {[%emt 0:00:05]} Rxb4 {[%emt 0:00:00]} 85. Kc3 {[%emt 0:00:25]} Rb3+ {[%emt 0:00:05]} 86. Kc2 {[%emt 0:00:27]} Ka6 {[%emt 0:00:42]} 87. Rc8 {[%emt 0:01:11]} Kb5 {[%emt 0:01:00]} 88. Rc7 {[%emt 0:00:28]} Rh3 {[%emt 0:00:30]} 89. Rc8 {[%emt 0:00:21]} Rh2+ {[%emt 0:03:18]} 90. Kc3 {[%emt 0:00:06]} Rh3+ {[%emt 0:00:02]} 91. Kc2 {[%emt 0:00:07]} Rb3 {[%emt 0:00:52]} 92. Rc7 {[%emt 0:00:09]} Kc4 {[%emt 0:01:39]} 93. Rxc6+ {[%emt 0:00:09]} Kxd4 {[%emt 0:00:03]} 94. Ra6 {[%emt 0:01:24]} Rb4 {[%emt 0:00:21]} 95. Rh6 {[%emt 0:00:05]} Kc5 {[%emt 0:00:09]} 96. Rh8 {[%emt 0:00:31]} Rb6 {[%emt 0:00:19]} 97. Ra8 {[%emt 0:00:37]} Kb4 {[%emt 0:00:24]} 98. Rh8 {[%emt 0:01:52]} Rc6+ {[%emt 0:00:09]} 99. Kb1 {[%emt 0:00:28]} d4 {[%emt 0:02:21]} 100. Rd8 {[%emt 0:00:13]} Kc4 {[%emt 0:00:36]} 101. Kc2 {[%emt 0:00:03]} Rc5 {[%emt 0:00:28]} 102. Rd7 {[%emt 0:01:49]} Rh5 {[%emt 0:00:48]} 103. Rc7+ {[%emt 0:00:10]} Kd5 {[%emt 0:00:24]} 104. Rd7+ {[%emt 0:00:29]} Ke4 {[%emt 0:00:09]} 105. Re7+ {[%emt 0:00:22]} Re5 {[%emt 0:00:08]} 106. Rh7 {[%emt 0:00:29]} Rc5+ {[%emt 0:02:40]} 107. Kd2 {[%emt 0:00:05]} Rb5 {[%emt 0:00:21]} 108. Re7+ {[%emt 0:00:19]} Kd5 {[%emt 0:00:05]} 109. Kc2 {[%emt 0:00:28]} Rb3 {[%emt 0:00:33]} 110. Rd7+ {[%emt 0:00:32]} Ke4 {[%emt 0:00:12]} 111. Re7+ {[%emt 0:00:28]} Kf3 {[%emt 0:00:46]} 112. Rd7 {[%emt 0:00:58]} Ke3 {[%emt 0:00:31]} 113. Re7+ {[%emt 0:00:14]} Kf4 {[%emt 0:00:07]} 114. Re8 {[%emt 0:00:37]} Re3 {[%emt 0:00:35]} 115. Rf8+ {[%emt 0:00:46]} Ke4 {[%emt 0:00:43]} 116. Re8+ {[%emt 0:00:12]} Kf3 {[%emt 0:00:27]} 117. Rd8 {[%emt 0:00:35]} Re2+ {[%emt 0:01:22]} 118. Kd3 {[%emt 0:00:40]} Rxb2 {[%emt 0:00:11]} 119. Rxd4 {[%emt 0:00:55]} a3 {[%emt 0:00:11]} 1/2-1/2

[Event "4NCL Div 1 2024-25"]
[Site "England"]
[Date "2024.11.24"]
[Round "2.43"]
[White "Kalavannan, Koby"]
[Black "Badacsonyi, Frankie"]
[Result "1-0"]
[Annotator "RC"]
[ECO "A17"]
[WhiteElo "2225"]
[BlackElo "2266"]
[PlyCount "83"]
[EventDate "2024.11.23"]
[EventType "team-tourn"]
[EventCountry "ENG"]
[SourceTitle "playchess.com"]
[Source "ChessBase"]
[SourceQuality "1"]
[TimeControl "40/6000+30:3000+30"]

1. Nf3 {[%emt 0:10:47]} d5 {[%emt 0:10:32]} 2. c4 {[%emt 0:00:13]} e6 {[%emt 0:00:38]} 3. e3 {[%emt 0:00:11]} Nf6 {[%emt 0:00:56]} 4. Nc3 {[%emt 0:00:16]} b6 {[%emt 0:01:15]} 5. b3 {[%emt 0:00:29]} Bb7 {[%emt 0:01:00]} 6. Bb2 {[%emt 0:00:20]} Nbd7 {[%emt 0:00:56]} 7. Qc2 {[%emt 0:03:14]} a6 {[%emt 0:02:17]} 8. cxd5 {[%emt 0:07:48]} exd5 {[%emt 0:00:52]} 9. d4 {[%emt 0:00:17]} Bd6 {[%emt 0:01:13]} 10. Bd3 {[%emt 0:00:13]} Qe7 {[%emt 0:01:52]} 11. O-O-O {[%emt 0:05:35]} c5 {[%emt 0:19:31]} 12. Rhe1 {[%emt 0:09:35]} Ne4 {[%emt 0:04:21]} 13. dxc5 {[%emt 0:09:12]} Ndxc5 {[%emt 0:11:23]} 14. Bf1 {[%emt 0:06:35]} Nxc3 {[%emt 0:08:56]} 15. Qxc3 {[%emt 0:00:36]} f6 {[%emt 0:11:03]} 16. Qd4 {[%emt 0:05:53]} b5 {[%emt 0:04:14]} 17. Qh4 {[%emt 0:12:32]} Ne4 {[%emt 0:05:31]} 18. Bd3 {[%emt 0:02:21]} O-O {[%emt 0:14:14]} 19. Re2 {[%emt 0:03:55]} Ba3 {[%emt 0:01:51]} 20. Bxe4 {[%emt 0:01:38]} dxe4 {[%emt 0:00:08]} 21. Nd4 {[%emt 0:00:33]} Rac8+ {[%emt 0:00:44]} 22. Kb1 {[%emt 0:00:10]} Bxb2 {[%emt 0:00:08]} 23. Rxb2 {[%emt 0:01:33]} Rc5 {[%emt 0:00:25]} 24. Qg4 {[%emt 0:03:37]} f5 {[%emt 0:00:28]} 25. Qe2 {[%emt 0:02:02]} f4 {[%emt 0:01:08]} 26. exf4 {[%emt 0:02:05]} Rxf4 {[%emt 0:00:37]} 27. Rbd2 {[%emt 0:00:08]} Rf8 {[%emt 0:03:21]} 28. Nc2 {[%emt 0:02:36]} Rc7 {[%emt 0:00:10]} 29. Qg4 {[%emt 0:00:59]} Bc8 {[%emt 0:00:36]} 30. Qg3 {[%emt 0:00:01]} Bb7 {[%emt 0:01:49]} 31. Ne3 {[%emt 0:00:31]} a5 {[%emt 0:01:01]} 32. Rd5 {[%emt 0:01:37]} a4 {[%emt 0:01:14]} 33. Nf5 {[%emt 0:09:23]} Rxf5 {[%emt 0:01:16]} 34. Rxf5 {[%emt 0:00:01]} e3 {[%emt 0:00:10]} 35. Re5 {[%emt 0:00:39]} Be4+ {[%emt 0:00:54]} 36. Ka1 {[%emt 0:00:02]} Qf6 {[%emt 0:00:41]} 37. f4 {[%emt 0:03:10]} e2 {[%emt 0:00:09]} 38. Re1 {[%emt 0:04:45]} Qc6 {[%emt 0:00:53]} 39. Qe3 {[%emt 0:00:34]} Qc2 {[%emt 0:00:40]} 40. Rxe4 {[%emt 0:02:11]} Qd1+ {[%emt 0:00:22]} 41. Kb2 {[%emt 0:50:05]} Qc2+ {[%emt 0:50:59]} 42. Ka3 {[%emt 0:00:09]} 1-0

[Event "4NCL Div 1 2024-25"]
[Site "England"]
[Date "2024.11.24"]
[Round "2.44"]
[White "Pang, Ethan"]
[Black "Milson, Samuel A"]
[Result "1-0"]
[Annotator "RC"]
[ECO "C01"]
[WhiteElo "2303"]
[BlackElo "2069"]
[PlyCount "67"]
[EventDate "2024.11.23"]
[EventType "team-tourn"]
[EventCountry "ENG"]
[SourceTitle "playchess.com"]
[Source "ChessBase"]
[SourceQuality "1"]
[TimeControl "40/6000+30:3000+30"]

1. e4 {[%emt 0:10:36]} e6 {[%emt 0:10:17]} 2. d4 {[%emt 0:00:37]} d5 {[%emt 0:00:17]} 3. Bd3 {[%emt 0:00:36]} dxe4 {[%emt 0:00:34]} 4. Bxe4 {[%emt 0:00:34]} Nf6 {[%emt 0:00:32]} 5. Bf3 {[%emt 0:00:26]} Bd6 {[%emt 0:02:29]} 6. Nc3 {[%emt 0:01:44]} O-O {[%emt 0:05:44]} 7. Nb5 {[%emt 0:03:05]} e5 {[%emt 0:03:57]} 8. Nxd6 {[%emt 0:03:21]} Qxd6 {[%emt 0:01:16]} 9. dxe5 {[%emt 0:02:45]} Qxe5+ {[%emt 0:00:54]} 10. Ne2 {[%emt 0:00:28]} Nc6 {[%emt 0:09:15]} 11. O-O {[%emt 0:02:31]} Bg4 {[%emt 0:11:48]} 12. Bxg4 {[%emt 0:04:32]} Nxg4 {[%emt 0:03:15]} 13. Nf4 {[%emt 0:04:58]} h5 {[%emt 0:07:58]} 14. h3 {[%emt 0:03:36]} Rad8 {[%emt 0:03:08]} 15. Qe1 {[%emt 0:02:32]} Qxe1 {[%emt 0:02:39]} 16. Rxe1 {[%emt 0:00:03]} Nd4 {[%emt 0:02:22]} 17. hxg4 {[%emt 0:02:09]} Nxc2 {[%emt 0:00:08]} 18. Be3 {[%emt 0:00:38]} Nxa1 {[%emt 0:00:44]} 19. Rxa1 {[%emt 0:00:18]} hxg4 {[%emt 0:00:19]} 20. Rc1 {[%emt 0:02:09]} Rd7 {[%emt 0:01:05]} 21. Rc5 {[%emt 0:01:39]} b6 {[%emt 0:04:53]} 22. Rg5 {[%emt 0:07:48]} f5 {[%emt 0:02:48]} 23. Kh2 {[%emt 0:03:42]} c5 {[%emt 0:11:30]} 24. Kg3 {[%emt 0:01:57]} Rf6 {[%emt 0:07:30]} 25. Nh5 {[%emt 0:02:24]} Rff7 {[%emt 0:00:34]} 26. Bf4 {[%emt 0:02:07]} Kh7 {[%emt 0:01:54]} 27. Be5 {[%emt 0:02:43]} Rd3+ {[%emt 0:05:13]} 28. Kh4 {[%emt 0:02:40]} g6 {[%emt 0:05:44]} 29. Nf4 {[%emt 0:01:02]} Rd2 {[%emt 0:00:26]} 30. Rxg6 {[%emt 0:04:17]} Rxf2 {[%emt 0:01:45]} 31. Kg5 {[%emt 0:00:31]} Re7 {[%emt 0:02:56]} 32. Bf6 {[%emt 0:00:49]} Rxf4 {[%emt 0:01:25]} 33. Rh6+ {[%emt 0:00:10]} Kg8 {[%emt 0:00:08]} 34. Kg6 {[%emt 0:00:24]} 1-0